Cogmind - Beta 16 @@@ ROGUE MODE // 2026.01.18 @ 19:43:23 Player: Ez3 Result: Destroyed by G-50 Soldier with Heavy Laser Performance ------------- Evolutions (3) 1500 Regions Visited (6) 1200 Robots Destroyed (54) 270 Value Destroyed (1138) 1138 Prototype IDs (6) 120 Alien Tech Used (0) 0 Bonus (356) 356 TOTAL SCORE: 4584 Bonus ------- Follower Combat Kills 356 Cogmind --------- Core Integrity 0/700 Matter 221/300 Energy 94/290 System Corruption 0% Temperature Warm (125) Movement Core (750) Ox14 Location -7/Factory Parts ------- > --- POWER (1) -------- Reinforced Deuterium Engine > --- PROPULSION (3) --- (None) > --- UTILITY (7) ------ Large Storage Unit > --- WEAPON (2) ------- Enhanced Autogun Advanced EMP Blaster > --- INVENTORY (15) --- Advanced EMP Blaster Datajack Welding Torch Peak State ------------ > --- POWER ------------ Light Nuclear Core > --- PROPULSION ------- Aluminum Leg Aluminum Leg Carbon-fiber Leg > --- UTILITY ---------- Improved Heat Sink Improved Heat Sink Large Storage Unit Tractor Beam Recalibrator Drone Bay Drone Bay > --- WEAPON ----------- Advanced EMP Blaster Advanced EMP Blaster > --- INVENTORY -------- Light Nuclear Core Light Nuclear Core Carbon-fiber Leg Beam Rifle Particle Gun Heavy Laser Enhanced Autogun Enhanced Autogun Assault Cannon Advanced Assault Cannon Advanced EMP Blaster Advanced EMP Blaster Datajack Welding Torch [Rating: 42] Favorites ----------- Power Light Nuclear Core Engine Light Ion Engine Power Core Light Nuclear Core Propulsion Aluminum Leg Leg Aluminum Leg Wheel Wheel Utility Large Storage Unit Device Improved Heat Sink Storage Large Storage Unit Protection Core Shielding Weapon Advanced EMP Blaster Energy Gun Small Laser Ballistic Gun Assault Rifle Ballistic Cannon Advanced Assault Cannon Launcher Advanced EMP Blaster Special Weapon Welding Torch Special Melee Weapon Datajack Build | -11 -10 -10 -9 -8 -8 -7 ------- Run | Yrd Mat Min Mat Mat Sto Fac Slots Evolved 6 | . . . 2 2 . 2 Power . | . . . . . . . Propulsion 1 | . . . . . . 1 Utility 5 | . . . 2 2 . 1 Weapon . | . . . . . . . Parts Attached 53 | 7 3 1 6 . 26 10 Power 7 | 1 . . . . 3 3 Engine 4 | 1 . . . . 2 1 Core 3 | . . . . . 1 2 Reactor . | . . . . . . . Propulsion 9 | 2 . . 1 . 4 2 Treads . | . . . . . . . Leg 5 | . . . . . 3 2 Wheel 4 | 2 . . 1 . 1 . Hover . | . . . . . . . Flight . | . . . . . . . Utility 14 | 2 3 . 1 . 7 1 Device 11 | 1 2 . 1 . 6 1 Storage 2 | 1 1 . . . . . Processor . | . . . . . . . Hackware . | . . . . . . . Protection 1 | . . . . . 1 . Artifact . | . . . . . . . Weapon 23 | 2 . 1 4 . 12 4 Energy Gun 7 | . . 1 1 . 5 . Energy Cannon . | . . . . . . . Ballistic Gun 4 | 2 . . . . 1 1 Ballistic Cannon 2 | . . . . . . 2 Launcher 7 | . . . 2 . 4 1 Special Weapon 2 | . . . 1 . 1 . Impact Weapon . | . . . . . . . Slashing Weapon . | . . . . . . . Piercing Weapon . | . . . . . . . Special Melee Weapon 1 | . . . . . 1 . Unidentified Prototypes 4 | . . . 1 . 3 . Parts Lost 43 | . . . 3 . 19 21 Power 6 | . . . 1 . 2 3 Propulsion 9 | . . . 1 . 4 4 Utility 12 | . . . . . 6 6 Weapon 16 | . . . 1 . 7 8 Highest Loss Streak 21 | . . . 3 . 12 21 To Critical Strikes . | . . . . . . . Average Backups 10 | 5 8 11 12 14 10 12 Power . | . . . . . 1 1 Propulsion 2 | 2 3 4 3 3 1 1 Utility 1 | . 2 4 3 3 . . Weapon 5 | 1 2 2 4 6 6 8 Tool/Special . | . . . . . . . Unused Backups 2 | . 1 . . . 1 . Power 1 | . 1 . . . . . Propulsion . | . . . . . . . Utility . | . . . . . . . Weapon 1 | . . . . . 1 . Tool/Special . | . . . . . . . Average Slot Usage (%) 85 | . 100 100 96 63 79 82 Engine 4 | . 14 14 11 . 1 . Core 4 | . . . . . 6 6 Leg 9 | . . . . . 12 16 Wheel 8 | . 28 28 21 18 2 . Device 27 | . 14 14 30 27 29 36 Storage 9 | . 14 14 11 9 9 7 Energy Gun 4 | . . 14 5 9 4 . Ballistic Gun 4 | . 28 14 2 . 1 . Launcher 5 | . . . 10 . 4 12 Special Weapon 1 | . . . 4 . 2 . Special Melee Weapon 1 | . . . . . 2 . Peak Build Rating 42 | 8 9 8 15 12 35 42 Average Rating 19 | 6 8 8 13 12 22 34 On Entrance 11 | . 8 8 8 12 12 35 Avg Prop Armor Cover (%) . | . . . . . . . Naked Turns . | . . . . . . . Heaviest Build 53 | 13 29 28 35 27 52 53 Greatest Support 40 | 26 26 26 26 26 26 40 Greatest Overweight (x) 10 | . 1 1 2 1 10 9 Average Overweight (x) 1 | . . 1 1 1 1 1 Largest Inventory Capacity 15 | 8 15 15 15 15 15 15 Average Capacity 14 | 7 14 15 15 15 15 15 Most Carried 15 | 8 10 13 15 14 15 15 Average Carried 10 | 5 8 11 12 14 10 12 Final Capacity 15 | 8 15 15 15 15 15 15 Final Carried 14 | 8 10 13 14 14 14 3 Class Distribution -------------------- 43% | Scavenger-Mutant 37% | Mutant 11% | Infiltrator-Mutant 7% | Commander-Mutant Dominant Class ---------------- Mutant | -10/Materials Mutant | -10/Mines Infiltrator-Mutant | -9/Materials Infiltrator-Mutant | -8/Materials Scavenger-Mutant | -8/Storage Scavenger-Mutant | -7/Factory Resources | -11 -10 -10 -9 -8 -8 -7 ----------- Run | Yrd Mat Min Mat Mat Sto Fac Matter Collected 1218 | 366 42 34 7 . 647 122 Remotely 485 | 180 . . . . 250 55 Salvage Created 1698 | 208 58 79 86 . 894 373 Parts 104 | 18 2 10 13 . 43 18 Haulers Intercepted 6 | . 1 . 1 . 4 . Recyclers Shooed 1 | . . . . . 1 . Parts Field Recycled . | . . . . . . . Retrieved Matter . | . . . . . . . Parts Self-Destructed . | . . . . . . . Prevented . | . . . . . . . Parts Restored . | . . . . . . . Kills | -11 -10 -10 -9 -8 -8 -7 ------- Run | Yrd Mat Min Mat Mat Sto Fac Combat Hostiles Destroyed 24 | . . 5 4 . 10 5 Guns 10 | . . 5 1 . 1 3 AOE 13 | . . . 3 . 8 2 Classes Destroyed 12 | 3 1 1 3 . 2 2 Worker 4 | 2 . . . . 2 . Builder 6 | . . . 1 . 3 2 Tunneler 6 | 5 . . . . . 1 Hauler 6 | . 1 . 1 . 4 . Recycler 3 | 1 . . . . 2 . Operator 3 | . . . 1 . 2 . Watcher 1 | . . . 1 . . . Swarmer 9 | . . 5 4 . . . Grunt 10 | . . . . . 8 2 Brawler 1 | . . . . . . 1 Duelist 1 | . . . . . . 1 Sentry 4 | . . . . . 3 1 Best Kill Streak 8 | 8 1 4 5 . 8 4 Combat Bots Only 4 | . . 4 3 . 3 2 Max Kills in Single Turn 5 | 2 1 1 5 . 3 2 Gunslinging . | . . . . . . . Exploded 3 | . . . 3 . 2 1 Melee . | . . . . . . . Uniques/NPCs Destroyed . | . . . . . . . Combat | -11 -10 -10 -9 -8 -8 -7 -------- Run | Yrd Mat Min Mat Mat Sto Fac Hostile Shots Fired 605 | . . 34 38 . 149 384 Missed 193 | . . 9 12 . 40 132 Hits 412 | . . 25 26 . 109 252 Melee 15 | . . . . . . 15 Projectile 397 | . . 25 26 . 109 237 Critical Strikes 9 | . . . 1 . 3 5 Damage Taken 4880 | . . 199 266 . 1667 2748 Core 1257 | . . 56 39 . 448 714 Absorbed by Shields . | . . . . . . . Redirected to Shielding 51 | . . . . . 51 . Regen/Repaired (Parts) 33 | . . . . . 33 . Core Remaining (%) 71 | 100 . 77 90 . 18 . Volleys Fired 111 | 16 2 8 8 . 56 21 Largest 2 | 2 2 2 2 . 2 2 Hottest 125 | 40 40 60 100 . 125 125 Shots Fired 169 | 32 4 16 14 . 69 34 Gun 118 | 32 4 16 5 . 41 20 Cannon 7 | . . . . . . 7 Launcher 32 | . . . 8 . 17 7 Special 12 | . . . 1 . 11 . Kinetic 81 | 32 4 8 2 . 19 16 Thermal 48 | . . 8 3 . 26 11 Explosive 16 | . . . 8 . 8 . Electromagnetic 24 | . . . 1 . 16 7 Robot Hit Streak 14 | 14 4 4 1 . 4 10 Robot Miss Streak 9 | 3 . 3 9 . 3 2 Penetration Max . | . . . . . . . Secondary Targets . | . . . . . . . Shots Hit Robots 107 | 20 3 8 2 . 50 24 Core Hits 82 | 9 2 5 9 . 39 18 Critical Kills . | . . . . . . . Critical Parts Destroyed . | . . . . . . . Critical Strikes 2 | . . . . . . 2 Burn 2 | . . . . . . 2 Melee Attacks 12 | . . . . . 12 . Impact . | . . . . . . . Slashing . | . . . . . . . Piercing . | . . . . . . . Sneak Attacks 8 | . . . . . 8 . Combat Hostiles . | . . . . . . . Follow-up Attacks . | . . . . . . . Damage Inflicted 3395 | 264 40 94 461 . 1652 884 Guns 1141 | 264 40 94 10 . 455 278 Cannons 107 | . . . . . . 107 Explosions 2121 | . . . 451 . 1171 499 Melee . | . . . . . . . Ramming 23 | . . . . . 23 . Kinetic 780 | 264 40 73 . . 180 223 Thermal 444 | . . 21 . . 245 178 Explosive 1011 | . . . 451 . 560 . Electromagnetic 1137 | . . . 10 . 644 483 Impact . | . . . . . . . Slashing . | . . . . . . . Piercing . | . . . . . . . Highest Corruption 2 | . . . . . 2 . Average Corruption 1 | . . . . . 1 . Corruption Purged . | . . . . . . . Corruption Blocked . | . . . . . . . Effects 11 | . . . . . 11 . Message Errors 2 | . . . . . 2 . Matter Fused 5 | . . . . . 5 . Heat Flow Errors 1 | . . . . . 1 . Misfires 1 | . . . . . 1 . Alerts 1 | . . . . . 1 . Weapon Failures 1 | . . . . . 1 . Overload Shots . | . . . . . . . Overflow Damage 56 | . . . 16 . 32 8 Projectiles . | . . . . . . . Explosions 56 | . . . 16 . 32 8 Melee . | . . . . . . . Knockbacks 1 | . . . . . . 1 Impact . | . . . . . . . Kinetic 1 | . . . . . . 1 Secondary . | . . . . . . . Self-Inflicted Damage 193 | . . . 44 . 78 71 Shots 11 | . . . 2 . 3 6 Rammed 5 | . . . . . 5 . Targets Rammed 5 | . . . . . 5 . Kicked . | . . . . . . . Crushed . | . . . . . . . Highest Temperature 158 | . . . 9 . 158 118 Average Temperature 46 | . . . 5 . 46 52 Received Heat Transfer 1416 | . . 6 30 . 531 849 Siege Activations . | . . . . . . . Martial Activations . | . . . . . . . Shielding Activations . | . . . . . . . Robots Disrupted . | . . . . . . . Combat Hostiles . | . . . . . . . Robots Corrupted . | . . . . . . . Combat Hostiles . | . . . . . . . Parts Fried . | . . . . . . . Impact Corruptions . | . . . . . . . Robots Melted 1 | . . . . . 1 . Combat Hostiles 1 | . . . . . 1 . Parts Melted 5 | . . . . . 3 2 Heat Transferred 1151 | . . 50 . . 533 568 Parts Sabotaged . | . . . . . . . Parts Stolen . | . . . . . . . Parts Stripped . | . . . . . . . Power Chain Reactions 3 | . . . . . 1 2 Alert | -11 -10 -10 -9 -8 -8 -7 ------- Run | Yrd Mat Min Mat Mat Sto Fac Maximum Alert Level 1 | . . . . . 1 1 Low Security (%) 93 | 100 100 100 100 100 86 99 Level 1 6 | . . . . . 13 . Level 2 . | . . . . . . . Level 3 . | . . . . . . . Level 4 . | . . . . . . . Level 5 . | . . . . . . . High Security . | . . . . . . . Max Security . | . . . . . . . Peak Influence 250 | 15 7 80 169 45 250 222 Initial 94 | . 3 . . 45 14 94 Average 68 | 4 1 36 61 42 102 40 Influence Increases 1646 | 40 7 110 199 . 850 440 Destroy 0b10 Robot/C 680 | . . 100 80 . 400 100 Destroy 0b10 Robot/NC 145 | 40 5 . 20 . 65 15 Destroy Leader 164 | . 2 10 14 . 118 20 Allied During Kill 128 | . . . . . 128 . Successful Hack 16 | . . . . . 4 12 Disable Machine 90 | . . . 30 . 30 30 Anti-Garrison Action 150 | . . . . . . 150 Destroy Structure 123 | . . . 55 . 60 8 Lose Combat Pursuer 150 | . . . . . 45 105 Influence Decreases 1424 | 35 12 110 90 74 677 426 Entered New Map 201 | . 2 . . 64 21 114 Time Decay 803 | 35 10 110 60 10 418 160 Lost Part 254 | . . . 30 . 98 126 Lost Ally 166 | . . . . . 140 26 Squads Dispatched 8 | . . . 1 . 3 4 Investigation . | . . . . . . . Extermination . | . . . . . . . Reinforcement 4 | . . . 1 . 3 . Assault 2 | . . . . . . 2 Garrison 2 | . . . . . . 2 Intercept . | . . . . . . . Searches Triggered . | . . . . . . . Construction Impeded 1 | . . . . . 1 . Haulers Reinforced . | . . . . . . . Active Scanning Responses . | . . . . . . . Cargo Convoy Interrupts . | . . . . . . . Stealth | -11 -10 -10 -9 -8 -8 -7 --------- Run | Yrd Mat Min Mat Mat Sto Fac Distress Signals 1 | . . . . . 1 . Communications Jammed . | . . . . . . . Distress Signals . | . . . . . . . Times Spotted 84 | . . 16 16 . 35 17 Peak Tracking Total 9 | . . 6 9 . 5 9 Tactical Retreats 16 | . . 5 2 . 6 3 ECM-based Alert Blocks 22 | . . 14 2 . 6 . Traps | -11 -10 -10 -9 -8 -8 -7 ------- Run | Yrd Mat Min Mat Mat Sto Fac Traps Triggered 1 | . . . . . 1 . Indirectly . | . . . . . . . Trap Hack Attempts . | . . . . . . . Triggered . | . . . . . . . Disarmed . | . . . . . . . Reprogrammed . | . . . . . . . Reused . | . . . . . . . Traps Extracted . | . . . . . . . Installed . | . . . . . . . Triggered . | . . . . . . . Machines | -11 -10 -10 -9 -8 -8 -7 ---------- Run | Yrd Mat Min Mat Mat Sto Fac Machines Disabled 7 | . . . 2 . 2 3 Max in Single Turn 1 | . . . 1 . 1 1 Garrison Access 1 | . . . . . . 1 Machines Repaired . | . . . . . . . Machines Dismantled . | . . . . . . . Machines Sabotaged . | . . . . . . . Overloaded Fab Kills . | . . . . . . . Hacking | -11 -10 -10 -9 -8 -8 -7 --------- Run | Yrd Mat Min Mat Mat Sto Fac Machines Accessed 8 | . 1 . . . 6 1 Terminals 6 | . 1 . . . 5 . Fabricators . | . . . . . . . Repair Stations 1 | . . . . . 1 . Recycling Units . | . . . . . . . Scanalyzers 1 | . . . . . . 1 Garrison Access . | . . . . . . . Total Hacks 17 | . 2 . . . 13 2 Successful 10 | . 2 . . . 7 1 Failed 7 | . . . . . 6 1 Catastrophic 1 | . . . . . 1 . Database Lockouts . | . . . . . . . Manual 3 | . . . . . 3 . Terminals 11 | . 2 . . . 9 . Fabricators . | . . . . . . . Repair Stations 4 | . . . . . 4 . Recycling Units . | . . . . . . . Scanalyzers 2 | . . . . . . 2 Garrison Access . | . . . . . . . Terminal Hacks 7 | . 2 . . . 5 . Prototype ID Bank 1 | . 1 . . . . . Open Door 3 | . . . . . 3 . Branch Access Points 1 | . . . . . 1 . Alert Level 1 | . . . . . 1 . Maintenance Status 1 | . 1 . . . . . Fabricator Hacks . | . . . . . . . Repair Station Hacks 2 | . . . . . 2 . Scan Component 1 | . . . . . 1 . Repair 1 | . . . . . 1 . Recycling Unit Hacks . | . . . . . . . Scanalyzer 1 | . . . . . . 1 Insert Component 1 | . . . . . . 1 Garrison Access Hacks . | . . . . . . . Unauthorized Hacks . | . . . . . . . Terminals . | . . . . . . . Fabricators . | . . . . . . . Repair Stations . | . . . . . . . Recycling Units . | . . . . . . . Scanalyzers . | . . . . . . . Garrison Access . | . . . . . . . Data Cores Recovered . | . . . . . . . Used . | . . . . . . . Hacking Detections 5 | . . . . . 5 . Full Trace Events . | . . . . . . . Feedback Events . | . . . . . . . Feedback Blocked . | . . . . . . . Robot Schematics Acquired . | . . . . . . . Robots Built . | . . . . . . . Authchips . | . . . . . . . Time . | . . . . . . . Total Robot Build Rating . | . . . . . . . Part Schematics Acquired . | . . . . . . . Parts Built . | . . . . . . . Authchips . | . . . . . . . Time . | . . . . . . . Total Part Build Rating . | . . . . . . . Part Studies Acquired . | . . . . . . . Parts Repaired 1 | . . . . . 1 . Time 60 | . . . . . 60 . Parts Recycled . | . . . . . . . Recycled Matter . | . . . . . . . Retrieved Matter . | . . . . . . . Retrieved Components . | . . . . . . . Parts Scanalyzed 1 | . . . . . . 1 Part Schematics Acquired . | . . . . . . . Parts Damaged . | . . . . . . . Bothacking | -11 -10 -10 -9 -8 -8 -7 ------------ Run | Yrd Mat Min Mat Mat Sto Fac Used RIF Installer . | . . . . . . . Robots Hacked 5 | . . . . . 5 . Non-combat 4 | . . . . . 4 . Combat 1 | . . . . . 1 . Robot Hacks Applied 7 | . . . . . 7 . parse_system 4 | . . . . . 4 . no_distress 1 | . . . . . 1 . find_recycling 1 | . . . . . 1 . find_station 1 | . . . . . 1 . Relay Couplers Released 1 | . . . . . . 1 Machine Destruction 1 | . . . . . . 1 Fabnet Peak Effective % . | . . . . . . . Robots Rewired . | . . . . . . . Allies Hacked . | . . . . . . . Hacks Repelled . | . . . . . . . Allies | -11 -10 -10 -9 -8 -8 -7 -------- Run | Yrd Mat Min Mat Mat Sto Fac Total Allies 10 | . . . . . 10 . Largest Group 10 | . . . . . 10 2 Highest-Rated Group 173 | . . . . . 173 32 Highest-Rated Ally 29 | . . . . . 29 16 Total Orders 8 | . . . . . 2 6 ROAM 2 | . . . . . . 2 GUARD 2 | . . . . . 2 . EXPLORE 2 | . . . . . . 2 RETURN 2 | . . . . . . 2 Ally Attacks 90 | . . . . . 87 3 Total Damage 1031 | . . . . . 997 34 Kills 11 | . . . . . 10 1 Allies Corrupted 1 | . . . . . . 1 Allies Melted . | . . . . . . . Intel | -11 -10 -10 -9 -8 -8 -7 ------- Run | Yrd Mat Min Mat Mat Sto Fac Active Infowar (turns) 873 | . 138 246 213 25 251 . Terrain 536 | . 66 . 196 25 249 . Structural 236 | . . . 197 25 14 . Seismic 193 | . . . . . 193 . ECM 736 | . 72 246 213 25 180 . Robot Analysis Total . | . . . . . . . Derelict Logs Recovered . | . . . . . . . Drone Launches 6 | . . . . . 4 2 Drone Recoveries 5 | . . . . . 2 3 Exploration | -11 -10 -10 -9 -8 -8 -7 ------------- Run | Yrd Mat Min Mat Mat Sto Fac Turns Passed 2284 | 131 138 246 213 25 1152 379 Spaces Moved 1039 | 72 119 174 123 12 419 120 Core 8 | 1 . . . . 6 1 Treads . | . . . . . . . Legs 409 | . . . . . 290 119 Wheels 622 | 71 119 174 123 12 123 . Hover . | . . . . . . . Flight . | . . . . . . . Fastest Speed 50 | 50 90 105 105 105 105 120 Average Speed 153 | 89 103 105 105 105 196 218 Slowest Speed 550 | 100 105 105 130 105 550 500 Overloaded Moves . | . . . . . . . Propulsion Burnouts . | . . . . . . . Robots Hopped . | . . . . . . . Potential Cave-ins . | . . . . . . . Cave-ins Triggered . | . . . . . . . Exploration Rate (%) 25 | 4 27 45 24 2 66 10 Regions Visited 6 Branch Regions 2 Pre-discovered Areas 1 | . . . . . 1 . Known Exits Taken . | . . . . . . . Unknown Exits Taken 6 | 1 1 1 1 1 1 . Scrap Searched 1 | . . 1 . . . . Spaces Dug 4 | . . . 1 . 3 . Terrain Destroyed 126 | . . . 66 . 53 7 Melee . | . . . . . . . Projectile 5 | . . . 1 . 3 1 AOE 121 | . . . 65 . 50 6 Terrain Rammed . | . . . . . . . Walls Destroyed . | . . . . . . . Machines Disabled . | . . . . . . . Actions | -11 -10 -10 -9 -8 -8 -7 --------- Run | Yrd Mat Min Mat Mat Sto Fac Total 1526 | 103 129 220 188 24 657 205 Wait 242 | . . 35 47 13 100 47 Move 1033 | 71 118 173 122 11 418 120 Hop . | . . . . . . . Pick Up 41 | 9 4 3 4 . 20 1 Fast Attach 14 | 6 . . . . 6 2 Attach 34 | 1 . . 3 . 18 12 Detach 1 | . . . . . 1 . Swap 24 | . 3 1 4 . 14 2 Drop 4 | . 2 . . . 2 . Fire 111 | 16 2 8 8 . 56 21 Melee 12 | . . . . . 12 . Ram 5 | . . . . . 5 . Kick . | . . . . . . . Crush . | . . . . . . . Escape Stasis 5 | . . . . . 5 . Rewire . | . . . . . . . Trap . | . . . . . . . Miscellaneous . | . . . . . . . Route ------- -11/Scrapyard -10/Materials -10/Mines -9/Materials -8/Materials -8/Storage (discovered 2 exits: *Fac / Rec) -7/Factory History --------- Turn | Location | Event 20 | -11/Scrapyard | Discovered new exit (range 16) 132 | -11/Scrapyard | Entered Materials 262 | -10/Materials | Discovered new exit (range 9) 270 | -10/Materials | Entered Mines 310 | -10/Mines | Build established: Mutant 438 | -10/Mines | Received a Rocket Launcher from a helpful Derelict 449 | -10/Mines | Discovered new exit (range 4) 516 | -10/Mines | Entered Materials 516 | -9/Materials | Evolved 2 slots: Utility x2 712 | -9/Materials | Discovered new exit (range 16) 729 | -9/Materials | Entered another Materials area 729 | -8/Materials | Evolved 2 slots: Utility x2 745 | -8/Materials | Discovered new exit (range 10) 754 | -8/Materials | Entered Storage 757 | -8/Storage | Lost 3 parts (1p1n1w) 917 | -8/Storage | Lost 3 parts (1n2w) 999 | -8/Storage | Core integrity fell below 50% 1070 | -8/Storage | Lost 12 parts (2p2n5u3w) 1076 | -8/Storage | Core integrity fell below 20% 1096 | -8/Storage | Assisted by bots powering up and referring to "LRC-V3" 1099 | -8/Storage | Identified exit to Recycling 1146 | -8/Storage | Lost 3 allies 1326 | -8/Storage | Lost 4 allies 1409 | -8/Storage | Learned location of Armory (-3) 1640 | -8/Storage | Build established: Scavenger-Mutant 1776 | -8/Storage | Discovered new exit (range 16) 1880 | -8/Storage | Repaired Faulty Hvy. Particle Gun 1906 | -8/Storage | Entered Factory 1906 | -7/Factory | Accompanied by 4 allies 1906 | -7/Factory | Evolved 2 slots: Propulsion x1, Utility x1 2101 | -7/Factory | Garrison activated, responded to threat 2252 | -7/Factory | Core integrity fell below 50% 2266 | -7/Factory | Core integrity fell below 20% 2285 | -7/Factory | Destroyed by G-50 Soldier with Heavy Laser Last Messages --------------- 02258_ Critical hit (Burn: +37). 02269_ Assault Cannon destroyed. 02269_ Enh. Autogun destroyed. 02270_ Acquired Rnf. Deuterium Engine. 02275_ L-41 Fighter destroyed. 02278_ Door malfunctions. 02278_ ALERT: Garrison Access compromised, dispatching multiple assault carriers. 02278_ Garrison Access disabled. 02278_ Relay Coupler [Grunt] tumbles out of Garrison Access. 02280_ Critical hit (Burn: +37). 02280_ Knocked back. 02281_ Acquired 52 matter. 02281_ G-47 Trooper destroyed. 02282_ U-05 Engineer lays Concrete. 02283_ Chain reaction triggered in Corrupted Lgt. Nuclear Core. 02283_ Destroyed Adv. Heat Sink. 02283_ Door malfunctions. 02283_ U-05 Engineer destroyed. 02283_ Assembly Bed disabled. Map ----- +----------------------------------------------------+ | " #?# # +??????????? | | " #?# # #??????????? | | #?######+####### #??????????? | | #??# ### ##?????????? | | ###### #?????????? | | #?????????? | | "" % #?????????? | | T ########### | | # # | | # "# | | ###### # "# | | ?????# ## # "# | | ?################ # T# | | ""T""" #?????# # "# | | "" """ #?????# # "# | | #?????# # "# | | #?????# + # | | """ """ #?????# # # | | """ """ #?????# # # | | """ """ #?????# # """""" # | | #?????# # """""" # | | """ """ #?????# # """""" # | | """ """ #?????# # """"" # | | """ """ #?????# ! %# # | | #?????# =[##g###+#### | | ####+#########??# Y@%#?# #??? | | #??# g b#?# #??? | | #??#t % ;####### | | #??# !* # | | #??# |%!g # | | #### = =% ! # | | ######## ; # | | ! #??# # # | | #??#### %%" """ " # = # | | " ! #?????# %%% """ ! [######## | | " #?????# %%" """ "" #??????? | | " #?????# ! #??????? | | #?????# #??????? | | "" #?????# ########+#####+#??????? | | """ #?????# #?# ! #??????? | | S" #?????# #?# ! #??????? | | """ #?????# #?# #??????? | | """ ####### #?# #??????? | | / #?# #??????? | | ########|= #?# #??????? | | % #%= #?# #??????? | | /! #?# #??????? | | """""" # #?# #??????? | | """""" # % ### #??????? | | """""" + + #??????? | +----------------------------------------------------+ Best States ------------- Heat Dissipation 62 Energy Generation 16 Energy Capacity 290 Matter Stores 300 Matter Capacity 300 Sight Range 16 Terrain Scan Range 16 Terrain Scan Density 10 ECM Strength 1 Core Shielding 20 Evasion (%) 55 Item Schematics ----------------- None Robot Schematics ------------------ None Fabricated ------------ Nothing Repaired ---------- Hvy. Particle Gun | 70% | -8/Storage Studied --------- None Alien Tech Used ----------------- None Achievements -------------- The More The Merrier Use The Force Challenges ------------ None Game ------ Seed SignalFusionCartridge Manual? 0 Play Time 02:01:53 Cumulative 13.2 hours Start 2026.01.18 @ 15:59:52 End 2026.01.18 @ 19:43:23 Sessions 1 Manual Loads 0 Difficulty Rogue Special Mode None Game No. 8 Rogue 8 Adventurer 0 Explorer 0 Win Type - Total 0 Types 0/0/0/0/0/0/0/0/0/0 Lore% 1 Gallery% 11 Achievement% 8 Wizard Run 0 Options --------- Layout 0 ASCII 0 Keyboard 1 Movement Vi Keybinds 0 Fullscreen 1 Font 14/SmallcapsGlow Map View 72x54 Zoom Use 2% Tactical HUD 1 Map Filters NONE Filters NONE Steam 0 RUN: 7edf1093-cc6b-47cb-8407-be3bdbc823c5